[Event "*** Titled Tuesday 3|2 Blitz"]
[Site "Chess.com"]
[Date "2016.09.06"]
[Round "6"]
[White "danir29"]
[Black "Rsnr"]
[Result "1-0"]
[WhiteElo "2419"]
[BlackElo "2514"]
[TimeControl "180+2"]
[EndTime "18:05:50 PDT"]
[Termination "danir29 won by resignation"]

1. d4 {[%clk 0:03:01.9]} 1... d5 {[%clk 0:02:59.7]} 2. Bf4 {[%clk 0:03:02.3]}
2... Nf6 {[%clk 0:02:58.8]} 3. e3 {[%clk 0:03:02.4]} 3... c5 {[%clk 0:02:59.7]}
4. Nf3 {[%clk 0:02:59.6]} 4... Nc6 {[%clk 0:03:00.7]} 5. Nbd2 {[%clk 0:03:00.3]}
5... Qb6 {[%clk 0:02:58.3]} 6. dxc5 {[%clk 0:03:00.6]} 6... Qxb2 {[%clk
0:02:59.3]} 7. Rb1 {[%clk 0:03:00.1]} 7... Qa3 {[%clk 0:02:46]} 8. Bb5 {[%clk
0:02:56.2]} 8... Qxc5 {[%clk 0:02:41.8]} 9. c4 {[%clk 0:02:53.4]} 9... e6 {[%clk
0:02:33.2]} 10. O-O {[%clk 0:02:33.3]} 10... dxc4 {[%clk 0:02:13.1]} 11. Nxc4
{[%clk 0:02:30.9]} 11... Nd5 {[%clk 0:02:14.4]} 12. Be5 {[%clk 0:02:12]} 12...
Bd7 {[%clk 0:02:01]} 13. Bd4 {[%clk 0:02:04.1]} 13... Nxd4 {[%clk 0:01:40.8]}
14. Bxd7+ {[%clk 0:02:04.4]} 14... Kxd7 {[%clk 0:01:42.2]} 15. Nce5+ {[%clk
0:02:01.6]} 15... Ke8 {[%clk 0:01:30.2]} 16. exd4 {[%clk 0:02:00.1]} 16... Qe7
{[%clk 0:01:08.9]} 17. Qa4+ {[%clk 0:01:53]} 17... Kd8 {[%clk 0:01:10.4]} 18.
Ng5 {[%clk 0:01:49.6]} 18... Nc3 {[%clk 0:00:57.1]} 19. Ngxf7+ {[%clk
0:01:49.5]} 19... Kc8 {[%clk 0:00:55]} 20. Rfc1 {[%clk 0:01:49.3]} 20... Qc7
{[%clk 0:00:51.1]} 21. Qe8+ {[%clk 0:01:48.3]} 1-0

[Event "*** Titled Tuesday 3|2 Blitz"]
[Site "Chess.com"]
[Date "2016.09.06"]
[Round "6"]
[White "FairChess_on_YouTube"]
[Black "psv98"]
[Result "1-0"]
[WhiteElo "2693"]
[BlackElo "2533"]
[TimeControl "180+2"]
[EndTime "18:06:07 PDT"]
[Termination "FairChess_on_YouTube won by resignation"]

1. e4 {[%clk 0:03:01.9]} 1... c6 {[%clk 0:02:56]} 2. d4 {[%clk 0:03:01.8]} 2...
d5 {[%clk 0:02:57.4]} 3. Nc3 {[%clk 0:03:02.4]} 3... dxe4 {[%clk 0:02:57.5]} 4.
Nxe4 {[%clk 0:03:04.3]} 4... Nf6 {[%clk 0:02:57.1]} 5. Nxf6+ {[%clk 0:03:04.5]}
5... exf6 {[%clk 0:02:59]} 6. Nf3 {[%clk 0:03:04.6]} 6... Bd6 {[%clk 0:02:59.7]}
7. Bc4 {[%clk 0:03:03.7]} 7... O-O {[%clk 0:03:00.7]} 8. O-O {[%clk 0:03:04.1]}
8... Nd7 {[%clk 0:02:58.7]} 9. h3 {[%clk 0:03:03.8]} 9... Re8 {[%clk 0:02:58.1]}
10. c3 {[%clk 0:02:57.9]} 10... Nf8 {[%clk 0:02:59.2]} 11. Bd2 {[%clk
0:02:57.1]} 11... Be6 {[%clk 0:02:57]} 12. Qb3 {[%clk 0:02:55.1]} 12... Qd7
{[%clk 0:02:54.1]} 13. Rfe1 {[%clk 0:02:53.4]} 13... Bc7 {[%clk 0:02:50.2]} 14.
Bxe6 {[%clk 0:02:50.3]} 14... Rxe6 {[%clk 0:02:36.4]} 15. Rxe6 {[%clk
0:02:49.8]} 15... fxe6 {[%clk 0:02:37.5]} 16. Re1 {[%clk 0:02:48.6]} 16... Re8
{[%clk 0:02:36.9]} 17. c4 {[%clk 0:02:46.6]} 17... Ng6 {[%clk 0:02:28.1]} 18. h4
{[%clk 0:02:45.1]} 18... Ne7 {[%clk 0:02:14.6]} 19. g3 {[%clk 0:02:43.7]} 19...
Nf5 {[%clk 0:02:12.9]} 20. Qxb7 {[%clk 0:02:40]} 20... Rb8 {[%clk 0:01:36.2]}
21. Qxa7 {[%clk 0:02:39.8]} 21... Rxb2 {[%clk 0:01:17]} 22. Bf4 {[%clk
0:02:40.5]} 22... e5 {[%clk 0:01:09.5]} 23. dxe5 {[%clk 0:02:41]} 23... fxe5
{[%clk 0:00:21.5]} 24. Bxe5 {[%clk 0:02:38.9]} 24... Qd3 {[%clk 0:00:16.8]} 25.
Qxc7 {[%clk 0:02:31.6]} 25... Qxf3 {[%clk 0:00:15]} 26. Bxb2 {[%clk 0:02:30.9]}
1-0

[Event "*** Titled Tuesday 3|2 Blitz"]
[Site "Chess.com"]
[Date "2016.09.06"]
[Round "6"]
[White "steinitz_attack"]
[Black "NTBT_DHS"]
[Result "0-1"]
[WhiteElo "1801"]
[BlackElo "2499"]
[TimeControl "180+2"]
[EndTime "18:06:31 PDT"]
[Termination "NTBT_DHS won by checkmate"]

1. d4 {[%clk 0:03:02]} 1... Nf6 {[%clk 0:03:00.9]} 2. Nf3 {[%clk 0:03:02.9]}
2... g6 {[%clk 0:03:02.5]} 3. Bf4 {[%clk 0:03:03.2]} 3... Bg7 {[%clk 0:03:03.9]}
4. e3 {[%clk 0:03:04.4]} 4... d6 {[%clk 0:03:05.4]} 5. h3 {[%clk 0:03:04.6]}
5... O-O {[%clk 0:03:06.9]} 6. Be2 {[%clk 0:03:05.9]} 6... c5 {[%clk 0:03:07.7]}
7. c3 {[%clk 0:03:06.6]} 7... Nc6 {[%clk 0:03:08.7]} 8. O-O {[%clk 0:03:07.3]}
8... Qb6 {[%clk 0:03:09.8]} 9. Qb3 {[%clk 0:03:07.8]} 9... Be6 {[%clk
0:03:11.2]} 10. Qxb6 {[%clk 0:03:00.8]} 10... axb6 {[%clk 0:03:12.6]} 11. a3
{[%clk 0:03:02]} 11... Rfe8 {[%clk 0:03:10.2]} 12. Nbd2 {[%clk 0:02:59.8]} 12...
Bf5 {[%clk 0:03:10.1]} 13. g4 {[%clk 0:02:51.2]} 13... Be4 {[%clk 0:03:04]} 14.
Ng5 {[%clk 0:02:52.1]} 14... e5 {[%clk 0:02:59.9]} 15. Bxe5 {[%clk 0:02:19.4]}
15... dxe5 {[%clk 0:02:57.9]} 16. Ngxe4 {[%clk 0:02:18.5]} 16... Nxe4 {[%clk
0:02:59.2]} 17. Nxe4 {[%clk 0:02:18.6]} 17... exd4 {[%clk 0:03:00.8]} 18. Nd6
{[%clk 0:02:17.9]} 18... Re6 {[%clk 0:03:00.4]} 19. Nc4 {[%clk 0:02:07.6]} 19...
Na5 {[%clk 0:02:48.9]} 20. Nxa5 {[%clk 0:01:47.5]} 20... bxa5 {[%clk 0:02:49.1]}
21. Bc4 {[%clk 0:01:47.6]} 21... Re7 {[%clk 0:02:42.2]} 22. exd4 {[%clk
0:01:47.8]} 22... cxd4 {[%clk 0:02:43.7]} 23. cxd4 {[%clk 0:01:41.9]} 23... Bxd4
{[%clk 0:02:45]} 24. Rab1 {[%clk 0:01:42.2]} 24... Rc8 {[%clk 0:02:45.9]} 25. b3
{[%clk 0:01:40.2]} 25... Re4 {[%clk 0:02:38.6]} 26. a4 {[%clk 0:01:35.3]} 26...
Rf4 {[%clk 0:02:38.8]} 27. Kg2 {[%clk 0:01:36.1]} 27... Rc6 {[%clk 0:02:39.6]}
28. f3 {[%clk 0:01:35.6]} 28... h5 {[%clk 0:02:39.1]} 29. Rbd1 {[%clk
0:01:30.2]} 29... b6 {[%clk 0:02:37.8]} 30. Rfe1 {[%clk 0:01:24.5]} 30... Rcf6
{[%clk 0:02:38.1]} 31. Rf1 {[%clk 0:01:22]} 31... Kg7 {[%clk 0:02:37]} 32. Rde1
{[%clk 0:01:21.8]} 32... Bc5 {[%clk 0:02:36.9]} 33. Re4 {[%clk 0:01:22]} 33...
hxg4 {[%clk 0:02:36.4]} 34. hxg4 {[%clk 0:01:21.3]} 34... Rxe4 {[%clk
0:02:29.2]} 35. fxe4 {[%clk 0:01:22.3]} 35... Rd6 {[%clk 0:02:28.1]} 36. Kf3
{[%clk 0:01:21.5]} 36... Rd2 {[%clk 0:02:27.9]} 37. Kg3 {[%clk 0:01:20.3]} 37...
f6 {[%clk 0:02:26.6]} 38. Rf3 {[%clk 0:01:11.5]} 38... Bd6+ {[%clk 0:02:26.5]}
39. Kh4 {[%clk 0:01:08.9]} 39... Rh2+ {[%clk 0:02:26.4]} 40. Rh3 {[%clk
0:01:10.3]} 40... g5+ {[%clk 0:02:27.7]} 41. Kh5 {[%clk 0:01:07.6]} 41... Rxh3#
{[%clk 0:02:29]} 0-1

[Event "*** Titled Tuesday 3|2 Blitz"]
[Site "Chess.com"]
[Date "2016.09.06"]
[Round "6"]
[White "yurisolo"]
[Black "hypert"]
[Result "1-0"]
[WhiteElo "2494"]
[BlackElo "2330"]
[TimeControl "180+2"]
[EndTime "18:08:03 PDT"]
[Termination "yurisolo won by resignation"]

1. e4 {[%clk 0:03:01.9]} 1... c5 {[%clk 0:03:00.4]} 2. Nf3 {[%clk 0:03:03.2]}
2... e6 {[%clk 0:03:01.3]} 3. d4 {[%clk 0:03:04.5]} 3... cxd4 {[%clk 0:03:03.2]}
4. Nxd4 {[%clk 0:03:05.7]} 4... Nf6 {[%clk 0:03:05.1]} 5. Nc3 {[%clk 0:03:07.2]}
5... d6 {[%clk 0:03:06.2]} 6. Be3 {[%clk 0:03:08.3]} 6... Be7 {[%clk 0:03:06.2]}
7. f3 {[%clk 0:03:08.2]} 7... O-O {[%clk 0:03:07.2]} 8. Qd2 {[%clk 0:03:09.7]}
8... d5 {[%clk 0:03:08.4]} 9. e5 {[%clk 0:03:07.2]} 9... Nfd7 {[%clk 0:03:08.9]}
10. f4 {[%clk 0:03:08.8]} 10... Nc6 {[%clk 0:03:09.3]} 11. O-O-O {[%clk
0:03:02.6]} 11... Nxd4 {[%clk 0:02:53.3]} 12. Bxd4 {[%clk 0:03:04.5]} 12... Bc5
{[%clk 0:02:53.3]} 13. Qe3 {[%clk 0:03:03.3]} 13... b6 {[%clk 0:02:53.6]} 14.
Bd3 {[%clk 0:03:03.3]} 14... Bxd4 {[%clk 0:02:48.2]} 15. Qxd4 {[%clk 0:03:04.2]}
15... Bb7 {[%clk 0:02:33.1]} 16. h3 {[%clk 0:03:04.4]} 16... f6 {[%clk
0:02:31.4]} 17. exf6 {[%clk 0:02:55]} 17... Qxf6 {[%clk 0:02:17]} 18. Qxf6
{[%clk 0:02:55.7]} 18... Rxf6 {[%clk 0:02:17]} 19. Ne2 {[%clk 0:02:52]} 19...
Nc5 {[%clk 0:02:13.4]} 20. Rhe1 {[%clk 0:02:47.3]} 20... Nxd3+ {[%clk
0:02:09.3]} 21. cxd3 {[%clk 0:02:44.9]} 21... Rc8+ {[%clk 0:01:55.2]} 22. Kd2
{[%clk 0:02:45.4]} 22... h5 {[%clk 0:01:36.3]} 23. g3 {[%clk 0:02:45.4]} 23...
Rc7 {[%clk 0:01:23.9]} 24. h4 {[%clk 0:02:46.5]} 24... g6 {[%clk 0:01:24.1]} 25.
Nd4 {[%clk 0:02:46.7]} 25... Re7 {[%clk 0:01:06.7]} 26. Rc1 {[%clk 0:02:46.5]}
26... Kf7 {[%clk 0:00:55.1]} 27. Nf3 {[%clk 0:02:46.9]} 27... Ke8 {[%clk
0:00:53.9]} 28. d4 {[%clk 0:02:44.9]} 28... Kd8 {[%clk 0:00:52.5]} 29. Re5
{[%clk 0:02:44.8]} 29... Rf5 {[%clk 0:00:34.4]} 30. Rce1 {[%clk 0:02:43.9]}
30... Rxe5 {[%clk 0:00:31.4]} 31. Rxe5 {[%clk 0:02:44.7]} 31... Bc6 {[%clk
0:00:32.4]} 32. Rg5 {[%clk 0:02:38.8]} 32... Be8 {[%clk 0:00:33.1]} 33. Ne5
{[%clk 0:02:40]} 33... Kc7 {[%clk 0:00:33.3]} 34. Nxg6 {[%clk 0:02:37.3]} 34...
Rg7 {[%clk 0:00:28.3]} 35. Ne5 {[%clk 0:02:37.7]} 35... Rxg5 {[%clk 0:00:27.3]}
36. hxg5 {[%clk 0:02:38.4]} 36... Kd6 {[%clk 0:00:28.9]} 37. Ke3 {[%clk
0:02:37]} 37... Ke7 {[%clk 0:00:29.9]} 38. Kf3 {[%clk 0:02:38.2]} 38... Kf8
{[%clk 0:00:30.9]} 39. Kg2 {[%clk 0:02:39]} 39... Kg7 {[%clk 0:00:31.5]} 40. Kh3
{[%clk 0:02:40.5]} 40... Kh7 {[%clk 0:00:32.2]} 41. Kh4 {[%clk 0:02:41.7]} 41...
Kg7 {[%clk 0:00:33.3]} 42. a3 {[%clk 0:02:31.7]} 42... a5 {[%clk 0:00:33.3]} 43.
g4 {[%clk 0:02:24.3]} 43... hxg4 {[%clk 0:00:33.1]} 44. Kxg4 {[%clk 0:02:26.2]}
44... Ba4 {[%clk 0:00:30.2]} 45. f5 {[%clk 0:02:26.1]} 45... Bd1+ {[%clk
0:00:20.6]} 46. Kf4 {[%clk 0:02:26.1]} 46... exf5 {[%clk 0:00:20.4]} 47. Kxf5
{[%clk 0:02:27.4]} 47... Bb3 {[%clk 0:00:18.4]} 48. Ke6 {[%clk 0:02:27]} 48...
b5 {[%clk 0:00:19.8]} 49. Kd6 {[%clk 0:02:28]} 49... b4 {[%clk 0:00:20.9]} 50.
axb4 {[%clk 0:02:28.4]} 50... axb4 {[%clk 0:00:22.8]} 51. Kc5 {[%clk 0:02:29.7]}
1-0

[Event "*** Titled Tuesday 3|2 Blitz"]
[Site "Chess.com"]
[Date "2016.09.06"]
[Round "6"]
[White "goingin33"]
[Black "Kawhi_Leonard2"]
[Result "0-1"]
[WhiteElo "2173"]
[BlackElo "2050"]
[TimeControl "180+2"]
[EndTime "18:08:41 PDT"]
[Termination "Kawhi_Leonard2 won by resignation"]

1. e4 {[%clk 0:03:01.9]} 1... c5 {[%clk 0:02:59.8]} 2. Nf3 {[%clk 0:03:01.8]}
2... d6 {[%clk 0:03:01.3]} 3. d4 {[%clk 0:02:59.2]} 3... cxd4 {[%clk 0:03:03.2]}
4. Qxd4 {[%clk 0:03:00.7]} 4... Nf6 {[%clk 0:03:04.8]} 5. Bg5 {[%clk 0:03:01.1]}
5... Nc6 {[%clk 0:02:54.3]} 6. Bb5 {[%clk 0:03:01.7]} 6... Bd7 {[%clk
0:02:44.7]} 7. Bxc6 {[%clk 0:03:02.2]} 7... Bxc6 {[%clk 0:02:45.3]} 8. Nc3
{[%clk 0:03:02.8]} 8... e6 {[%clk 0:02:21.5]} 9. O-O-O {[%clk 0:03:02.5]} 9...
Be7 {[%clk 0:02:07.7]} 10. Rhe1 {[%clk 0:03:02.5]} 10... Qa5 {[%clk 0:02:01.3]}
11. Qd2 {[%clk 0:03:00.4]} 11... O-O {[%clk 0:01:45.3]} 12. Kb1 {[%clk
0:03:00.5]} 12... Rfc8 {[%clk 0:01:24.2]} 13. Nd5 {[%clk 0:02:54.6]} 13... Qxd2
{[%clk 0:01:21.3]} 14. Nxe7+ {[%clk 0:02:55.5]} 14... Kf8 {[%clk 0:01:22.2]} 15.
Rxd2 {[%clk 0:02:50.5]} 15... Kxe7 {[%clk 0:01:22.9]} 16. Nd4 {[%clk 0:02:47.2]}
16... h6 {[%clk 0:01:19.8]} 17. Bxf6+ {[%clk 0:02:46.8]} 17... Kxf6 {[%clk
0:01:16.8]} 18. Nb3 {[%clk 0:02:45.2]} 18... Ke7 {[%clk 0:01:16.1]} 19. f3
{[%clk 0:02:43.8]} 19... f6 {[%clk 0:01:06.8]} 20. Red1 {[%clk 0:02:44.3]} 20...
d5 {[%clk 0:01:06.9]} 21. exd5 {[%clk 0:02:40.1]} 21... Bxd5 {[%clk 0:01:06.6]}
22. Nd4 {[%clk 0:02:41.1]} 22... a6 {[%clk 0:01:03]} 23. Re1 {[%clk 0:02:34.3]}
23... Kf7 {[%clk 0:00:59.5]} 24. Nf5 {[%clk 0:02:30.2]} 24... Rd8 {[%clk
0:00:53.1]} 25. Red1 {[%clk 0:02:14.1]} 25... exf5 {[%clk 0:00:24.5]} 26. Rxd5
{[%clk 0:02:13.8]} 26... Rxd5 {[%clk 0:00:25.9]} 27. Rxd5 {[%clk 0:02:15.6]}
27... Re8 {[%clk 0:00:26.6]} 28. Rd7+ {[%clk 0:02:14.5]} 28... Kg6 {[%clk
0:00:26.7]} 29. Kc1 {[%clk 0:02:14.2]} 29... Re2 {[%clk 0:00:26.8]} 30. Rd2
{[%clk 0:02:14.2]} 30... Re1+ {[%clk 0:00:26.1]} 31. Rd1 {[%clk 0:02:15.6]}
31... Re2 {[%clk 0:00:27.3]} 32. Rd2 {[%clk 0:02:15.7]} 32... Re1+ {[%clk
0:00:27.9]} 33. Rd1 {[%clk 0:02:17.2]} 33... Re2 {[%clk 0:00:29.1]} 34. Rg1
{[%clk 0:02:18.8]} 34... f4 {[%clk 0:00:29.4]} 35. Kd1 {[%clk 0:02:19.9]} 35...
Rf2 {[%clk 0:00:29.8]} 36. a4 {[%clk 0:02:19.7]} 36... Kf5 {[%clk 0:00:30.2]}
37. g3 {[%clk 0:02:13.2]} 37... fxg3 {[%clk 0:00:26.6]} 38. Rxg3 {[%clk
0:02:13.5]} 38... g5 {[%clk 0:00:27.2]} 39. h4 {[%clk 0:02:07.4]} 39... gxh4
{[%clk 0:00:25.8]} 40. Rh3 {[%clk 0:02:08.7]} 40... Kg5 {[%clk 0:00:26.5]} 41.
b4 {[%clk 0:02:08.4]} 41... b5 {[%clk 0:00:24.9]} 42. axb5 {[%clk 0:02:06.4]}
42... axb5 {[%clk 0:00:25.9]} 43. Kc1 {[%clk 0:02:08]} 43... Rg2 {[%clk
0:00:19.3]} 44. Kb2 {[%clk 0:02:08.8]} 44... Rg3 {[%clk 0:00:20]} 45. Rh1 {[%clk
0:02:09.3]} 45... Rxf3 {[%clk 0:00:20.9]} 46. Rd1 {[%clk 0:02:09.6]} 46... Rf5
{[%clk 0:00:18.2]} 47. Rg1+ {[%clk 0:02:09.4]} 47... Kh5 {[%clk 0:00:18.1]} 48.
Kb3 {[%clk 0:02:06.4]} 48... h3 {[%clk 0:00:18.9]} 49. c4 {[%clk 0:02:03.3]}
49... Rf3+ {[%clk 0:00:16.5]} 50. Kb2 {[%clk 0:02:02.5]} 50... bxc4 {[%clk
0:00:17.6]} 51. Kc2 {[%clk 0:02:03.7]} 51... Kh4 {[%clk 0:00:13.6]} 52. Rb1
{[%clk 0:02:02.8]} 52... h2 {[%clk 0:00:13.3]} 53. b5 {[%clk 0:02:04.2]} 53...
Rb3 {[%clk 0:00:12.7]} 54. Rh1 {[%clk 0:02:05.1]} 54... Kh3 {[%clk 0:00:13.4]}
0-1

[Event "*** Titled Tuesday 3|2 Blitz"]
[Site "Chess.com"]
[Date "2016.09.06"]
[Round "6"]
[White "Yaacovn"]
[Black "tigra"]
[Result "1-0"]
[WhiteElo "2634"]
[BlackElo "2452"]
[TimeControl "180+2"]
[EndTime "18:08:52 PDT"]
[Termination "Yaacovn won on time"]

1. d4 {[%clk 0:03:00.4]} 1... Nf6 {[%clk 0:02:56.4]} 2. Nf3 {[%clk 0:02:52.4]}
2... g6 {[%clk 0:02:57]} 3. c4 {[%clk 0:02:53.2]} 3... Bg7 {[%clk 0:02:57.5]} 4.
Nc3 {[%clk 0:02:54]} 4... d5 {[%clk 0:02:58.6]} 5. cxd5 {[%clk 0:02:54.9]} 5...
Nxd5 {[%clk 0:03:00.5]} 6. g3 {[%clk 0:02:52.2]} 6... Nb6 {[%clk 0:02:58]} 7.
Bg2 {[%clk 0:02:53.2]} 7... Nc6 {[%clk 0:02:58]} 8. O-O {[%clk 0:02:52.8]} 8...
O-O {[%clk 0:02:56.7]} 9. Bf4 {[%clk 0:02:49.5]} 9... Bg4 {[%clk 0:02:54.5]} 10.
d5 {[%clk 0:02:49.4]} 10... Na5 {[%clk 0:02:22.1]} 11. Ne5 {[%clk 0:02:49.5]}
11... Bf5 {[%clk 0:02:18.1]} 12. e4 {[%clk 0:02:42.5]} 12... Bc8 {[%clk
0:02:18]} 13. h4 {[%clk 0:02:39.3]} 13... e6 {[%clk 0:02:14.1]} 14. Rc1 {[%clk
0:02:31.2]} 14... f6 {[%clk 0:01:11.6]} 15. Nd3 {[%clk 0:02:22.7]} 15... e5
{[%clk 0:01:04.9]} 16. Be3 {[%clk 0:02:23.2]} 16... Nac4 {[%clk 0:01:03.7]} 17.
Bc5 {[%clk 0:02:23.7]} 17... Rf7 {[%clk 0:01:02.9]} 18. Nb5 {[%clk 0:02:11.1]}
18... a6 {[%clk 0:00:58.5]} 19. Nc3 {[%clk 0:02:02.8]} 19... Bd7 {[%clk
0:00:51.5]} 20. b3 {[%clk 0:02:02.7]} 20... Nd6 {[%clk 0:00:52]} 21. a3 {[%clk
0:02:03.2]} 21... Nbc8 {[%clk 0:00:52.7]} 22. Be3 {[%clk 0:02:01.6]} 22... Nb5
{[%clk 0:00:52.8]} 23. a4 {[%clk 0:01:57.9]} 23... Nxc3 {[%clk 0:00:52.5]} 24.
Rxc3 {[%clk 0:01:58.4]} 24... Nd6 {[%clk 0:00:54]} 25. Qc2 {[%clk 0:01:58.8]}
25... Rc8 {[%clk 0:00:53.2]} 26. Nc5 {[%clk 0:01:59.2]} 26... f5 {[%clk
0:00:52.4]} 27. Ne6 {[%clk 0:01:50.1]} 27... Qe7 {[%clk 0:00:37]} 28. Nxg7
{[%clk 0:01:48.2]} 28... Kxg7 {[%clk 0:00:14.9]} 29. Rxc7 {[%clk 0:01:38.9]}
29... Rxc7 {[%clk 0:00:15.5]} 30. Qxc7 {[%clk 0:01:39.4]} 30... Nxe4 {[%clk
0:00:16]} 31. Qxb7 {[%clk 0:01:17.4]} 31... Nd6 {[%clk 0:00:15.1]} 32. Qxa6
{[%clk 0:01:17.4]} 32... f4 {[%clk 0:00:16.2]} 33. Bc5 {[%clk 0:01:13.8]} 33...
Rf6 {[%clk 0:00:17.3]} 34. Re1 {[%clk 0:01:12]} 34... Kh6 {[%clk 0:00:10.1]} 35.
Qe2 {[%clk 0:01:08]} 35... Qf8 {[%clk 0:00:09.6]} 36. Qxe5 {[%clk 0:01:05.3]}
36... f3 {[%clk 0:00:04.3]} 37. Bf1 {[%clk 0:00:59.4]} 1-0

[Event "*** Titled Tuesday 3|2 Blitz"]
[Site "Chess.com"]
[Date "2016.09.06"]
[Round "6"]
[White "wonderfultime"]
[Black "dretch"]
[Result "0-1"]
[WhiteElo "2676"]
[BlackElo "2648"]
[TimeControl "180+2"]
[EndTime "18:08:59 PDT"]
[Termination "dretch won by resignation"]

1. d4 {[%clk 0:03:01.9]} 1... d5 {[%clk 0:03:01]} 2. c4 {[%clk 0:03:03.2]} 2...
c6 {[%clk 0:03:01.5]} 3. Nc3 {[%clk 0:03:04.4]} 3... dxc4 {[%clk 0:03:02.1]} 4.
e3 {[%clk 0:03:04.7]} 4... b5 {[%clk 0:03:02.7]} 5. a4 {[%clk 0:03:06]} 5... b4
{[%clk 0:03:03.9]} 6. Ne4 {[%clk 0:03:07.6]} 6... Qd5 {[%clk 0:03:04.5]} 7. Ng3
{[%clk 0:03:08.8]} 7... Nf6 {[%clk 0:03:03.7]} 8. Be2 {[%clk 0:03:10]} 8... Ba6
{[%clk 0:03:04.8]} 9. e4 {[%clk 0:03:07.1]} 9... Nxe4 {[%clk 0:03:05.9]} 10. Bf3
{[%clk 0:03:07.9]} 10... f5 {[%clk 0:03:07]} 11. N1e2 {[%clk 0:03:09]} 11... g6
{[%clk 0:03:06.4]} 12. Nf4 {[%clk 0:03:02.1]} 12... Qf7 {[%clk 0:03:04.5]} 13.
Nxe4 {[%clk 0:03:01.1]} 13... fxe4 {[%clk 0:03:05.6]} 14. Bg4 {[%clk 0:03:02.7]}
14... h5 {[%clk 0:02:54.1]} 15. Be6 {[%clk 0:01:45]} 15... Qf6 {[%clk
0:02:55.1]} 16. d5 {[%clk 0:01:46.6]} 16... c3 {[%clk 0:02:36.8]} 17. bxc3
{[%clk 0:01:31.8]} 17... Bh6 {[%clk 0:02:30.1]} 18. g3 {[%clk 0:01:13.7]} 18...
Bc4 {[%clk 0:02:07.7]} 19. Rb1 {[%clk 0:00:39.9]} 19... Bxf4 {[%clk 0:01:51.3]}
20. Bxf4 {[%clk 0:00:40.3]} 20... cxd5 {[%clk 0:01:51]} 21. Bxd5 {[%clk
0:00:35.9]} 21... Bxd5 {[%clk 0:01:51.8]} 22. Qxd5 {[%clk 0:00:36.1]} 22...
Qxc3+ {[%clk 0:01:53]} 23. Bd2 {[%clk 0:00:36.9]} 23... Qc6 {[%clk 0:01:51.9]}
24. Qe5 {[%clk 0:00:35.1]} 24... O-O {[%clk 0:01:46.4]} 25. O-O {[%clk
0:00:21.7]} 25... Nd7 {[%clk 0:01:16.7]} 26. Qxe7 {[%clk 0:00:22.7]} 26... Rae8
{[%clk 0:01:15.2]} 27. Qxb4 {[%clk 0:00:23.8]} 27... Ne5 {[%clk 0:01:11.4]} 28.
Qb3+ {[%clk 0:00:24.6]} 28... Rf7 {[%clk 0:01:09.3]} 29. Be3 {[%clk 0:00:21.8]}
29... Qd7 {[%clk 0:01:00.5]} 30. Kg2 {[%clk 0:00:13.2]} 30... h4 {[%clk
0:00:58.3]} 31. Qd1 {[%clk 0:00:11.3]} 31... h3+ {[%clk 0:00:55.9]} 32. Kh1
{[%clk 0:00:11.1]} 32... Qf5 {[%clk 0:00:54.8]} 33. Rb4 {[%clk 0:00:03.9]} 33...
Rd7 {[%clk 0:00:49.6]} 34. Rd4 {[%clk 0:00:04.5]} 34... Rxd4 {[%clk 0:00:48.9]}
35. Bxd4 {[%clk 0:00:06.4]} 35... Rd8 {[%clk 0:00:37]} 36. Bxe5 {[%clk
0:00:07.4]} 36... Rxd1 {[%clk 0:00:37.1]} 0-1

[Event "*** Titled Tuesday 3|2 Blitz"]
[Site "Chess.com"]
[Date "2016.09.06"]
[Round "6"]
[White "Lapitch"]
[Black "Bishops83"]
[Result "0-1"]
[WhiteElo "2574"]
[BlackElo "2276"]
[TimeControl "180+2"]
[EndTime "18:09:23 PDT"]
[Termination "Bishops83 won by resignation"]

1. Nf3 {[%clk 0:03:01.9]} 1... c5 {[%clk 0:03:00.5]} 2. b3 {[%clk 0:03:01.9]}
2... Nc6 {[%clk 0:02:57.2]} 3. Bb2 {[%clk 0:03:01.5]} 3... d6 {[%clk 0:02:55.8]}
4. c4 {[%clk 0:03:00.9]} 4... e5 {[%clk 0:02:52]} 5. d3 {[%clk 0:02:59.2]} 5...
g6 {[%clk 0:02:47.7]} 6. g3 {[%clk 0:02:58.4]} 6... Bg7 {[%clk 0:02:48.7]} 7.
Bg2 {[%clk 0:02:59.7]} 7... Nge7 {[%clk 0:02:48.3]} 8. O-O {[%clk 0:03:01]} 8...
O-O {[%clk 0:02:45.8]} 9. Nc3 {[%clk 0:03:01.4]} 9... a6 {[%clk 0:02:42.4]} 10.
a3 {[%clk 0:02:52.5]} 10... Rb8 {[%clk 0:02:42.6]} 11. b4 {[%clk 0:02:41]} 11...
cxb4 {[%clk 0:02:33]} 12. axb4 {[%clk 0:02:42.9]} 12... b5 {[%clk 0:02:16]} 13.
cxb5 {[%clk 0:02:22.6]} 13... axb5 {[%clk 0:02:17.9]} 14. Rb1 {[%clk 0:02:21.3]}
14... Bg4 {[%clk 0:02:07.8]} 15. h3 {[%clk 0:02:19.2]} 15... Be6 {[%clk
0:02:00.4]} 16. Ng5 {[%clk 0:02:13]} 16... Bc8 {[%clk 0:01:58]} 17. Ba1 {[%clk
0:02:11.1]} 17... h6 {[%clk 0:01:51.5]} 18. Nf3 {[%clk 0:02:04.4]} 18... d5
{[%clk 0:01:51.6]} 19. Nd2 {[%clk 0:01:46.8]} 19... Be6 {[%clk 0:01:47.1]} 20.
Nb3 {[%clk 0:01:43.6]} 20... d4 {[%clk 0:01:35.5]} 21. Ne4 {[%clk 0:01:41.8]}
21... Bd5 {[%clk 0:01:36]} 22. Qd2 {[%clk 0:00:45.8]} 22... f5 {[%clk
0:01:20.6]} 23. Nec5 {[%clk 0:00:46.8]} 23... Bxg2 {[%clk 0:01:14.8]} 24. Kxg2
{[%clk 0:00:48.7]} 24... f4 {[%clk 0:01:16.6]} 25. Ne4 {[%clk 0:00:45.1]} 25...
Nd5 {[%clk 0:01:12.6]} 26. Nbc5 {[%clk 0:00:31.9]} 26... Qe7 {[%clk 0:01:04]}
27. Qa2 {[%clk 0:00:30.4]} 27... Rbd8 {[%clk 0:00:56.2]} 28. g4 {[%clk
0:00:25.3]} 28... Kh7 {[%clk 0:00:47.4]} 29. Kh2 {[%clk 0:00:25.6]} 29... f3
{[%clk 0:00:37.8]} 30. Qd2 {[%clk 0:00:22.8]} 30... Nf4 {[%clk 0:00:34.8]} 31.
e3 {[%clk 0:00:23.9]} 31... Nd5 {[%clk 0:00:31.2]} 32. Rbe1 {[%clk 0:00:24]}
32... Rf7 {[%clk 0:00:26.4]} 33. Rg1 {[%clk 0:00:22.4]} 33... Rc8 {[%clk
0:00:21]} 34. g5 {[%clk 0:00:22.9]} 34... h5 {[%clk 0:00:20.6]} 35. exd4 {[%clk
0:00:24.3]} 35... exd4 {[%clk 0:00:18.7]} 36. Nf6+ {[%clk 0:00:24.5]} 36... Bxf6
{[%clk 0:00:15.4]} 37. Rxe7 {[%clk 0:00:25.5]} 37... Bxe7 {[%clk 0:00:16.2]} 38.
Qa2 {[%clk 0:00:26.6]} 38... Ncxb4 {[%clk 0:00:13.5]} 39. Qb3 {[%clk 0:00:26.1]}
39... Bxc5 {[%clk 0:00:14.4]} 40. Rc1 {[%clk 0:00:25.8]} 40... Bd6+ {[%clk
0:00:14.2]} 0-1